fUSD/lending_fUSD_20240105
["ID","MTS","AMOUNT","RATE_DAILY","PERIOD"]
[310330464,1704473533108,-527.8724309,0.00033972,3]
[310330465,1704473533116,-500.0,0.00033972,3]
[310330466,1704473533126,-884.54,0.00033972,3]
[310330467,1704473533136,-3145.82,0.00033972,3]
[310330468,1704473533145,-1393.24,0.00033972,3]
[310330469,1704473533155,-834.29,0.00033972,3]
[310330470,1704473533165,-1151.41,0.00033972,3]
[310330471,1704473533175,-228.01689666,0.00033972,3]
[310330472,1704473533185,-542.06,0.00033972,3]
[310330473,1704473533194,-790.38,0.00033972,3]
[310330474,1704473533204,-501.35,0.00033972,2]
[310330475,1704473533213,-1526.32,0.00033972,3]
[310330476,1704473533223,-757.34,0.00033972,3]
[310330477,1704473533232,-500.0,0.00033972,3]
[310330478,1704473533241,-150.0,0.00033992,2]
[310330479,1704473533251,-190.4218231,0.00033999,2]
[310330480,1704473533261,-150.0,0.00033999,2]
[310330481,1704473533270,-1000.0,0.00034,4]
[310330482,1704473533279,-18414.0,0.00034,2]
[310330483,1704473533290,-1320.0,0.00034,7]
[310330484,1704473533299,-295.32453553,0.00034,2]
[310330485,1704473533309,-150.93,0.00034,2]
[310330486,1704473533319,-150.93,0.00034,2]
[310330487,1704473533328,-150.93,0.00034,2]
[310330488,1704473533337,-150.93,0.00034,2]
[310330489,1704473533348,-150.93,0.00034,2]
[310330490,1704473533357,-150.93,0.00034,2]
[310330491,1704473533367,-150.93,0.00034,2]
[310330492,1704473533375,-150.93,0.00034,2]
[310330493,1704473533385,-150.93,0.00034,2]
[310330494,1704473533394,-150.93,0.00034,2]
[310330495,1704473533404,-150.93,0.00034,2]
[310330496,1704473533413,-150.93,0.00034,2]
[310330497,1704473533423,-150.93,0.00034,2]
[310330498,1704473533432,-150.93,0.00034,2]
[310330499,1704473533442,-150.93,0.00034,2]
[310330500,1704473533452,-150.93,0.00034,2]
[310330501,1704473533461,-150.93,0.00034,2]
[310330502,1704473533471,-150.93,0.00034,2]
[310330503,1704473533481,-150.93,0.00034,2]
[310330504,1704473533490,-150.93,0.00034,2]
[310330505,1704473533499,-150.93,0.00034,2]
[310330506,1704473533509,-150.93,0.00034,2]
[310330507,1704473533519,-150.93,0.00034,2]
[310330508,1704473533529,-150.93,0.00034,2]
[310330509,1704473533539,-150.93,0.00034,2]
[310330510,1704473533548,-150.93,0.00034,2]
[310330511,1704473533558,-150.93,0.00034,2]
[310330512,1704473533567,-150.93,0.00034,2]
[310330513,1704473533578,-150.93,0.00034,2]
[310330514,1704473533588,-150.93,0.00034,2]
[310330515,1704473533598,-150.93,0.00034,2]
[310330516,1704473533607,-150.93,0.00034,2]
[310330517,1704473533617,-150.93,0.00034,2]
[310330518,1704473533628,-150.93,0.00034,2]
[310330519,1704473533639,-150.93,0.00034,2]
[310330520,1704473533649,-150.93,0.00034,2]
[310330521,1704473533658,-150.93,0.00034,2]
[310330522,1704473533668,-150.93,0.00034,2]
[310330523,1704473533678,-150.93,0.00034,2]
[310330524,1704473533688,-150.93,0.00034,2]
[310330525,1704473533698,-150.93,0.00034,2]
[310330526,1704473533708,-150.93,0.00034,2]
[310330527,1704473533718,-150.93,0.00034,2]
[310330528,1704473533729,-150.93,0.00034,2]
[310330529,1704473533738,-150.93,0.00034,2]
[310330530,1704473533749,-150.93,0.00034,2]
[310330531,1704473533759,-150.93,0.00034,2]
[310330532,1704473533769,-150.93,0.00034,2]
[310330533,1704473533779,-150.93,0.00034,2]
[310330534,1704473533790,-150.93,0.00034,2]
[310330535,1704473533800,-150.93,0.00034,2]
[310330536,1704473533810,-150.93,0.00034,2]
[310330537,1704473533819,-150.93,0.00034,2]
[310330538,1704473534008,-150.93,0.00034,2]
[310330539,1704473534018,-150.93,0.00034,2]
[310330540,1704473534028,-150.93,0.00034,2]
[310330541,1704473534037,-150.93,0.00034,2]
[310330542,1704473534048,-150.93,0.00034,2]
[310330543,1704473534057,-150.93,0.00034,2]
[310330544,1704473534067,-150.93,0.00034,2]
[310330545,1704473534078,-150.93,0.00034,2]
[310330546,1704473534087,-150.93,0.00034,2]
[310330547,1704473534097,-150.93,0.00034,2]
[310330548,1704473534106,-150.93,0.00034,2]
[310330549,1704473534115,-150.93,0.00034,2]
[310330550,1704473534125,-150.93,0.00034,2]
[310330551,1704473534134,-150.93,0.00034,2]
[310330552,1704473534143,-150.93,0.00034,2]
[310330553,1704473534153,-150.93,0.00034,2]
[310330554,1704473534162,-150.93,0.00034,2]
[310330555,1704473534171,-150.93,0.00034,2]
[310330556,1704473534181,-150.93,0.00034,2]
[310330557,1704473534190,-150.93,0.00034,2]
[310330558,1704473534200,-150.93,0.00034,2]
[310330559,1704473534209,-150.93,0.00034,2]
[310330560,1704473534218,-150.93,0.00034,2]
[310330561,1704473534227,-150.93,0.00034,2]
[310330562,1704473534237,-150.93,0.00034,2]
[310330563,1704473534247,-150.93,0.00034,2]
[310330564,1704473534256,-150.93,0.00034,2]
[310330565,1704473534266,-150.93,0.00034,2]
[310330566,1704473534276,-150.93,0.00034,2]
[310330567,1704473534286,-150.93,0.00034,2]
[310330568,1704473534295,-150.93,0.00034,2]
[310330569,1704473534305,-150.93,0.00034,2]
[310330570,1704473534315,-150.93,0.00034,2]
[310330571,1704473534324,-150.93,0.00034,2]
[310330572,1704473534333,-150.93,0.00034,2]
[310330573,1704473534342,-150.93,0.00034,2]
[310330574,1704473534352,-150.0,0.00034003,2]
[310330575,1704473534361,-1633.393474,0.00034012,2]
[310330576,1704473534371,-5639.077506,0.00034012,2]
[310330577,1704473534380,-596.666598,0.00034012,2]
[310330578,1704473534390,-228.390028,0.00034012,2]
[310330579,1704473534399,-297.465689,0.00034012,2]
[310330580,1704473534409,-456.0932,0.00034012,2]
[310330581,1704473534418,-1190.115615,0.00034012,2]
[310330582,1704473534427,-162.122429,0.00034012,2]
[310330583,1704473534436,-212.736914,0.00034012,2]
[310330584,1704473534445,-1158.962759,0.00034012,2]
[310330585,1704473534454,-150.0,0.00034018,2]
[310330586,1704473534464,-150.34853113,0.00034027,2]
[310330587,1704473534473,-150.0,0.0003404,2]
[310330588,1704473534483,-150.0,0.00034076,2]
[310330589,1704473534492,-500.0,0.00034078,10]
[310330590,1704473534502,-150.0,0.00034091,2]
[310330591,1704473534514,-1000.0,0.00034113,7]
[310330592,1704473534524,-1000.0,0.00034113,7]
[310330593,1704473534533,-1000.0,0.00034113,7]
[310330594,1704473534544,-1000.0,0.00034113,7]
[310330595,1704473534554,-1330.19546738,0.00034113,7]
[310330596,1704473534564,-1000.0,0.00034113,7]
[310330597,1704473534573,-631.67240037,0.00034113,7]
[310330598,1704473534583,-871.51275496,0.00034113,7]
[310330599,1704473534593,-267.32568466,0.00034113,7]
[310330600,1704473534603,-453.85493533,0.00034113,7]
[310330601,1704473534612,-540.53469318,0.00034113,7]
[310330602,1704473534623,-204.13112922,0.00034113,7]
[310330603,1704473534634,-481.88762893,0.00034113,7]
[310330604,1704473534644,-311.34966514,0.00034113,7]
[310330605,1704473534655,-150.0,0.00034116,2]
[310330606,1704473534666,-277.67,0.00034127,2]
[310330607,1704473534677,-150.0,0.00034185,2]
[310330608,1704473534687,-8000.0,0.000342,2]
[310330609,1704473534698,-150.0,0.00034206,2]
[310330610,1704473534707,-58663.2814051,0.00034223,2]
[310330611,1704473534717,-150.0,0.0003423,2]
[310330612,1704473534727,-150.0,0.00034233,2]
[310330613,1704473534737,-500.0,0.00034246,3]
[310330614,1704473534746,-500.0,0.00034246,3]
[310330615,1704473534755,-223.63854349,0.00034246,3]
[310330616,1704473534765,-679.76,0.00034246,2]
[310330617,1704473534775,-500.0,0.00034246,3]
[310330618,1704473534786,-500.0,0.00034246,3]
[310330619,1704473534796,-586.07762383,0.00034246,3]
[310330620,1704473534806,-500.0,0.00034246,3]
[310330621,1704473534816,-500.0,0.00034246,3]
[310330622,1704473534825,-500.0,0.00034246,3]
[310330623,1704473534835,-500.0,0.00034246,3]
[310330624,1704473534845,-732.22,0.00034246,3]
[310330625,1704473534854,-500.0,0.00034246,3]
[310330626,1704473534864,-444.5,0.00034246,3]
[310330627,1704473534875,-500.0,0.00034246,3]
[310330628,1704473534885,-557.95,0.00034246,3]
[310330629,1704473534896,-711.61,0.00034246,3]
[310330630,1704473534909,-777.32,0.00034246,3]
[310330631,1704473534918,-500.0,0.00034246,3]
[310330632,1704473534928,-500.0,0.00034246,3]
[310330633,1704473534937,-500.0,0.00034246,3]
[310330634,1704473534947,-500.0,0.00034246,3]
[310330635,1704473534956,-500.0,0.00034246,3]
[310330636,1704473534966,-500.0,0.00034246,3]
[310330637,1704473534976,-500.0,0.00034246,3]
[310330638,1704473534985,-366.3,0.00034246,3]
[310330639,1704473534996,-500.0,0.00034246,3]
[310330640,1704473535006,-592.48,0.00034246,3]
[310330641,1704473535016,-500.0,0.00034246,3]
[310330642,1704473535026,-1000.0,0.00034246,3]
[310330643,1704473535037,-996.51,0.00034246,3]
[310330644,1704473535047,-500.0,0.00034246,3]
[310330645,1704473535057,-500.0,0.00034246,3]
[310330646,1704473535067,-603.36614598,0.00034246,3]
[310330647,1704473535078,-500.0,0.00034246,3]
[310330648,1704473535088,-500.0,0.00034246,3]
[310330649,1704473535098,-710.5,0.00034246,3]
[310330650,1704473535108,-500.0,0.00034246,3]
[310330651,1704473535119,-666.1,0.00034246,3]
[310330652,1704473535130,-537.71,0.00034246,3]
[310330653,1704473535139,-617.72,0.00034246,3]
[310330654,1704473535149,-500.0,0.00034246,3]
[310330655,1704473535159,-500.0,0.00034246,3]
[310330656,1704473535169,-647.0,0.00034246,3]
[310330657,1704473535179,-500.0,0.00034246,3]
[310330658,1704473535189,-772.2,0.00034246,3]
[310330659,1704473535199,-500.0,0.00034246,3]
[310330660,1704473535209,-500.0,0.00034246,3]
[310330661,1704473535218,-537.87,0.00034246,3]
[310330662,1704473535228,-500.0,0.00034246,3]
[310330663,1704473535237,-1038.34,0.00034246,3]
[310330664,1704473535246,-500.0,0.00034246,3]
[310330665,1704473535256,-500.0,0.00034246,3]
[310330666,1704473535266,-500.0,0.00034246,3]
[310330667,1704473535276,-500.0,0.00034246,3]
[310330668,1704473535285,-534.42162707,0.00034246,3]
[310330669,1704473535295,-544.08,0.00034246,3]
[310330670,1704473535304,-500.0,0.00034246,3]
[310330671,1704473535313,-656.98,0.00034246,3]
[310330672,1704473535324,-500.0,0.00034246,3]
[310330673,1704473535334,-500.0,0.00034246,3]
[310330674,1704473535343,-669.87,0.00034246,3]
[310330675,1704473535353,-694.38,0.00034246,3]
[310330676,1704473535362,-742.45,0.00034246,3]
[310330677,1704473535387,-500.0,0.00034246,3]
[310330678,1704473535404,-184.04328916,0.00034246,3]
[310330679,1704473535426,-500.0,0.00034246,3]
[310330680,1704473535446,-544.16,0.00034246,3]
[310330681,1704473535462,-671.99,0.00034246,3]
[310330682,1704473535480,-669.51,0.00034246,3]
[310330683,1704473535501,-500.0,0.00034246,3]
[310330684,1704473535519,-548.59,0.00034246,3]
[310330685,1704473535538,-1530.36,0.00034246,3]
[310330686,1704473535557,-583.81,0.00034246,3]
[310330687,1704473535577,-500.0,0.00034246,3]
[310330688,1704473535597,-500.0,0.00034246,3]
[310330689,1704473535610,-500.0,0.00034246,3]
[310330690,1704473535626,-500.0,0.00034246,3]
[310330691,1704473535644,-285.93457556,0.00034246,3]
[310330692,1704473535660,-500.0,0.00034246,3]
[310330693,1704473535675,-754.95,0.00034246,3]
[310330694,1704473535691,-500.0,0.00034246,3]
[310330695,1704473535706,-500.0,0.00034246,3]
[310330696,1704473535723,-500.0,0.00034246,3]
[310330697,1704473535738,-1275.01,0.00034246,3]
[310330698,1704473535754,-500.0,0.00034246,3]
[310330699,1704473535770,-500.0,0.00034246,3]
[310330700,1704473535786,-843.96,0.00034246,3]
[310330701,1704473535802,-207.89,0.00034246,3]
[310330702,1704473535818,-500.0,0.00034246,3]
[310330703,1704473535833,-807.23,0.00034246,3]
[310330704,1704473535849,-500.0,0.00034246,3]
[310330705,1704473535865,-500.0,0.00034246,3]
[310330706,1704473535881,-500.0,0.00034246,3]
[310330707,1704473535900,-721.09,0.00034246,3]
[310330708,1704473535915,-500.0,0.00034246,3]
[310330709,1704473535930,-500.0,0.00034246,3]
[310330710,1704473535946,-500.0,0.00034246,3]
[310330711,1704473535961,-593.3,0.00034246,3]
[310330712,1704473535976,-500.0,0.00034246,3]
[310330713,1704473535997,-500.0,0.00034246,3]
[310330714,1704473536016,-12011.09,0.00034246,3]
[310330715,1704473536033,-364.07268409,0.00034246,3]
[310330716,1704473536051,-500.0,0.00034246,3]
[310330717,1704473536069,-1537.14,0.00034246,3]
[310330718,1704473536086,-1588.31,0.00034246,3]
[310330719,1704473536103,-5973.26,0.00034246,3]
[310330720,1704473536120,-562.91,0.00034246,3]
[310330721,1704473536137,-1752.6,0.00034246,3]
[310330722,1704473536153,-3119.17,0.00034246,3]
[310330723,1704473536168,-1026.31,0.00034246,3]
[310330724,1704473536184,-1346.93,0.00034246,3]
[310330725,1704473536199,-500.0,0.00034246,3]
[310330726,1704473536215,-1520.28,0.00034246,3]
[310330727,1704473536231,-500.0,0.00034246,3]
[310330728,1704473536246,-500.0,0.00034246,3]
[310330729,1704473536261,-500.0,0.00034246,3]
[310330730,1704473536277,-621.93,0.00034246,3]
[310330731,1704473536292,-871.85,0.00034246,3]
[310330732,1704473536306,-522.5,0.00034246,3]
[310330733,1704473536321,-2085.78,0.00034246,3]
[310330734,1704473536335,-790.33,0.00034246,3]
[310330735,1704473536350,-651.26,0.00034246,3]
[310330736,1704473536364,-1658.28,0.00034246,3]
[310330737,1704473536379,-2368.93,0.00034246,3]
[310330738,1704473536393,-500.0,0.00034246,3]
[310330739,1704473536408,-2545.82,0.00034246,3]
[310330740,1704473536423,-500.0,0.00034246,3]
[310330741,1704473536439,-5035.78,0.00034246,3]
[310330742,1704473536454,-1615.12,0.00034246,3]
[310330743,1704473536468,-3964.99,0.00034246,3]
[310330744,1704473536483,-900.42,0.00034246,3]
[310330745,1704473536498,-527.61,0.00034246,3]
[310330746,1704473536512,-855.65,0.00034246,3]
[310330747,1704473536527,-500.0,0.00034246,3]
[310330748,1704473536542,-3932.79,0.00034246,3]
[310330749,1704473536557,-15880.58,0.00034246,3]
[310330750,1704473536572,-500.0,0.00034246,3]
[310330751,1704473536586,-630.59,0.00034246,3]
[310330752,1704473536601,-2821.0,0.00034246,3]
[310330753,1704473536615,-1090.66,0.00034246,3]
[310330754,1704473536630,-500.0,0.00034246,3]
[310330755,1704473536645,-406.2,0.00034246,3]
[310330756,1704473536661,-1511.19,0.00034246,3]
[310330757,1704473536676,-668.86,0.00034246,3]
[310330758,1704473536691,-500.0,0.00034246,3]
[310330759,1704473536705,-1950.6,0.00034246,3]
[310330760,1704473536720,-7990.73,0.00034246,3]
[310330761,1704473536734,-2431.79,0.00034246,3]
[310330762,1704473536750,-500.0,0.00034246,3]
[310330763,1704473536765,-1509.04,0.00034246,3]
[310330764,1704473536779,-527.49,0.00034246,3]
[310330765,1704473536794,-752.06,0.00034246,3]
[310330766,1704473536809,-555.27,0.00034246,3]
[310330767,1704473536824,-6614.78,0.00034246,3]
[310330768,1704473536839,-1289.91,0.00034246,3]
[310330769,1704473536855,-1136.89,0.00034246,3]
[310330770,1704473536870,-646.07,0.00034246,3]
[310330771,1704473536884,-500.0,0.00034246,3]
[310330772,1704473536902,-588.45,0.00034246,3]
[310330773,1704473536916,-1154.77,0.00034246,3]
[310330774,1704473536934,-1148.85,0.00034246,3]
[310330775,1704473536948,-864.89,0.00034246,3]
[310330776,1704473536962,-746.81,0.00034246,3]
[310330777,1704473536976,-1747.09,0.00034246,3]
[310330778,1704473536991,-1086.86,0.00034246,3]
[310330779,1704473537007,-585.14,0.00034246,3]
[310330780,1704473537022,-500.0,0.00034246,3]
[310330781,1704473537037,-898.8,0.00034246,3]
[310330782,1704473537052,-581.39,0.00034246,3]
[310330783,1704473537067,-2794.23,0.00034246,3]
[310330784,1704473537082,-680.71,0.00034246,3]
[310330785,1704473537096,-2835.72,0.00034246,3]
[310330786,1704473537111,-2858.86,0.00034246,3]
[310330787,1704473537127,-533.41,0.00034246,3]
[310330788,1704473537141,-2517.57,0.00034246,3]
[310330789,1704473537157,-500.0,0.00034246,3]
[310330790,1704473537173,-2511.86,0.00034246,3]
[310330791,1704473537189,-2755.52,0.00034246,3]
[310330792,1704473537204,-500.0,0.00034246,3]
[310330793,1704473537220,-1222.0,0.00034246,3]
[310330794,1704473537235,-500.0,0.00034246,3]
[310330795,1704473537251,-4236.93,0.00034246,3]
[310330796,1704473537267,-814.18,0.00034246,3]
[310330797,1704473537283,-2392.95,0.00034246,3]
[310330798,1704473537298,-395.8,0.00034246,3]
[310330799,1704473537314,-1842.01,0.00034246,3]
[310330800,1704473537329,-804.31,0.00034246,3]
[310330801,1704473537338,-645.88,0.00034246,3]
[310330802,1704473537348,-780.05,0.00034246,3]
[310330803,1704473537358,-20128.17,0.00034246,3]
[310330804,1704473537367,-500.0,0.00034246,3]
[310330805,1704473537377,-618.16,0.00034246,3]
[310330806,1704473537664,-510.82,0.00034246,3]
[310330807,1704473537690,-500.0,0.00034246,3]
[310330808,1704473537713,-1056.97,0.00034246,3]
[310330809,1704473537727,-1483.19,0.00034246,3]
[310330810,1704473537736,-1304.64,0.00034246,3]
[310330811,1704473537746,-759.04,0.00034246,3]
[310330812,1704473537756,-1800.48,0.00034246,3]
[310330813,1704473537766,-3227.18,0.00034246,3]
[310330814,1704473537775,-3583.58,0.00034246,3]
[310330815,1704473537785,-212.48471645,0.00034246,3]
[310330816,1704473537795,-2756.04,0.00034246,3]
[310330817,1704473537805,-768.62,0.00034246,3]
[310330818,1704473537815,-2834.13,0.00034246,3]
[310330819,1704473537825,-2515.3,0.00034246,3]
[310330820,1704473537834,-500.0,0.00034246,3]
[310330821,1704473537844,-5299.03,0.00034246,3]
[310330822,1704473537854,-537.2,0.00034246,3]
[310330823,1704473537864,-664.57,0.00034246,3]
[310330824,1704473537873,-236.40927592,0.00034246,3]
[310330825,1704473537883,-1051.18,0.00034246,3]
[310330826,1704473537897,-512.71,0.00034246,3]
[310330827,1704473537906,-1696.0,0.00034246,3]
[310330828,1704473537915,-2490.22,0.00034246,3]
[310330829,1704473537925,-3340.06,0.00034246,3]
[310330830,1704473537935,-1285.5,0.00034246,3]
[310330831,1704473537944,-500.0,0.00034246,3]
[310330832,1704473537953,-848.87,0.00034246,3]
[310330833,1704473537962,-606.02,0.00034246,3]
[310330834,1704473537972,-554.12,0.00034246,3]
[310330835,1704473537982,-11508.87,0.00034246,3]
[310330836,1704473537991,-1649.63,0.00034246,3]
[310330837,1704473538000,-500.0,0.00034246,3]
[310330838,1704473538010,-500.0,0.00034246,3]
[310330839,1704473538020,-1188.82,0.00034246,3]
[310330840,1704473538029,-500.0,0.00034246,3]
[310330841,1704473538039,-687.41,0.00034246,3]
[310330842,1704473538048,-994.25,0.00034246,3]
[310330843,1704473538057,-1161.09,0.00034246,3]
[310330844,1704473538067,-500.0,0.00034246,3]
[310330845,1704473538076,-3783.36,0.00034246,3]
[310330846,1704473538086,-500.0,0.00034246,3]
[310330847,1704473538095,-4030.69,0.00034246,3]
[310330848,1704473538105,-907.04,0.00034246,3]
[310330849,1704473538115,-871.44,0.00034246,3]
[310330850,1704473538124,-2006.85,0.00034246,3]
[310330851,1704473538133,-500.0,0.00034246,3]
[310330852,1704473538143,-8452.87,0.00034246,3]
[310330853,1704473538151,-1134.28,0.00034246,3]
[310330854,1704473538160,-500.0,0.00034246,3]
[310330855,1704473538170,-500.0,0.00034246,3]
[310330856,1704473538179,-566.66,0.00034246,3]
[310330857,1704473538189,-500.0,0.00034246,3]
[310330858,1704473538198,-1157.92,0.00034246,3]
[310330859,1704473538207,-500.0,0.00034246,3]
[310330860,1704473538216,-512.07,0.00034246,3]
[310330861,1704473538226,-1638.59,0.00034246,3]
[310330862,1704473538235,-1195.76,0.00034246,3]
[310330863,1704473538245,-7740.43,0.00034246,3]
[310330864,1704473538254,-1402.48,0.00034246,3]
[310330865,1704473538263,-500.0,0.00034246,3]
[310330866,1704473538272,-500.0,0.00034246,3]
[310330867,1704473538281,-1600.27,0.00034246,3]
[310330868,1704473538291,-504.28,0.00034246,3]
[310330869,1704473538299,-2394.98,0.00034246,3]
[310330870,1704473538308,-1206.82,0.00034246,3]
[310330871,1704473538317,-1116.25,0.00034246,3]
[310330872,1704473538326,-500.0,0.00034246,3]
[310330873,1704473538336,-1341.2,0.00034246,3]
[310330874,1704473538345,-1246.52,0.00034246,3]
[310330875,1704473538355,-500.0,0.00034246,3]
[310330876,1704473538364,-884.54,0.00034246,3]
[310330877,1704473538373,-3145.82,0.00034246,3]
[310330878,1704473538383,-1393.24,0.00034246,3]
[310330879,1704473538392,-834.29,0.00034246,3]
[310330880,1704473538401,-1151.41,0.00034246,3]
[310330881,1704473538411,-542.06,0.00034246,3]
[310330882,1704473538420,-790.38,0.00034246,3]
[310330883,1704473538429,-501.35,0.00034246,2]
[310330884,1704473538439,-1526.32,0.00034246,3]
[310330885,1704473538448,-499.77184088,0.00034246,3]
[310330886,1704473538457,-150.0,0.00034266,2]
[310330887,1704473538466,-150.0,0.00034308,2]
[310330888,1704473538475,-421.61099917,0.00034352,7]
[310330889,1704473538484,-500.0,0.00034352,7]
[310330890,1704473538493,-150.0,0.00034353,2]
[310330891,1704473538503,-2423.05760651,0.00034355,6]
[310330892,1704473538511,-150.0,0.00034402,2]
[310330893,1704473538520,-174.58086038,0.0003442,6]
[310330894,1704473538529,-5000.0,0.00034452,4]
[310330895,1704473538539,-150.0,0.00034454,2]
[310330896,1704473538549,-12030.2930568,0.00034472,2]
[310330897,1704473538558,-2795.000228,0.00034472,2]
[310330898,1704473538569,-150.0,0.00034492,2]
[310330899,1704473538579,-14861.1781862,0.00034496,2]
[310330900,1704473538589,-5757.5147203,0.00034496,2]
[310330901,1704473538599,-2017.3939027,0.00034496,2]
[310330902,1704473538608,-157.22,0.000345,2]
[310330903,1704473538618,-157.22,0.000345,2]
[310330904,1704473538627,-208.0,0.0003451,2]
[310330905,1704473538637,-282.0,0.0003451,2]
[310330906,1704473538646,-500.0,0.0003452,3]
[310330907,1704473538656,-500.0,0.0003452,3]
[310330908,1704473538665,-679.76,0.0003452,2]
[310330909,1704473538675,-500.0,0.0003452,3]
[310330910,1704473538684,-500.0,0.0003452,3]
[310330911,1704473538694,-500.0,0.0003452,3]
[310330912,1704473538703,-500.0,0.0003452,3]
[310330913,1704473538713,-500.0,0.0003452,3]
[310330914,1704473538725,-500.0,0.0003452,3]
[310330915,1704473538734,-732.22,0.0003452,3]
[310330916,1704473538744,-500.0,0.0003452,3]
[310330917,1704473538753,-500.0,0.0003452,3]
[310330918,1704473538763,-557.95,0.0003452,3]
[310330919,1704473538773,-711.61,0.0003452,3]
[310330920,1704473538783,-777.32,0.0003452,3]
[310330921,1704473538793,-500.0,0.0003452,3]
[310330922,1704473538803,-9485.955884,0.0003452,2]
[310330923,1704473538813,-500.0,0.0003452,3]
[310330924,1704473538823,-500.0,0.0003452,3]
[310330925,1704473538832,-634.40013588,0.0003452,3]
[310330926,1704473538842,-500.0,0.0003452,3]
[310330927,1704473538851,-500.0,0.0003452,3]
[310330928,1704473538861,-500.0,0.0003452,3]
[310330929,1704473538871,-500.0,0.0003452,3]
[310330930,1704473538881,-592.48,0.0003452,3]
[310330931,1704473538890,-60961.364301,0.0003452,2]
[310330932,1704473538905,-240.1,0.0003452,3]
[310330933,1704473538915,-260.3786603,0.0003452,3]
[310330934,1704473538925,-996.51,0.0003452,3]
[310330935,1704473538935,-500.0,0.0003452,3]
[310330936,1704473538944,-200.59257138,0.0003452,3]
[310330937,1704473538954,-500.0,0.0003452,3]
[310330938,1704473538964,-500.0,0.0003452,3]
[310330939,1704473538973,-710.5,0.0003452,3]
[310330940,1704473538983,-500.0,0.0003452,3]
[310330941,1704473538994,-666.1,0.0003452,3]
[310330942,1704473539004,-537.71,0.0003452,3]
[310330943,1704473539014,-617.72,0.0003452,3]
[310330944,1704473539023,-500.0,0.0003452,3]
[310330945,1704473539033,-500.0,0.0003452,3]
[310330946,1704473539043,-647.0,0.0003452,3]
[310330947,1704473539053,-500.0,0.0003452,3]
[310330948,1704473539063,-772.2,0.0003452,3]
[310330949,1704473539072,-500.0,0.0003452,3]
[310330950,1704473539082,-500.0,0.0003452,3]
[310330951,1704473539092,-537.87,0.0003452,3]
[310330952,1704473539101,-500.0,0.0003452,3]
[310330953,1704473539110,-1038.34,0.0003452,3]
[310330954,1704473539120,-154.29820065,0.0003452,3]
[310330955,1704473539131,-500.0,0.0003452,3]
[310330956,1704473539140,-500.0,0.0003452,3]
[310330957,1704473539150,-548.47772465,0.0003452,3]
[310330958,1704473539160,-544.08,0.0003452,3]
[310330959,1704473539170,-237.31992224,0.0003452,3]
[310330960,1704473539180,-656.98,0.0003452,3]
[310330961,1704473539190,-342.68721727,0.0003452,3]
[310330962,1704473539200,-500.0,0.0003452,3]
[310330963,1704473539209,-669.87,0.0003452,3]